bitfinex/quotes_SOLUSD_20250930
["timestamp","ask_amount","ask_price","bid_price","bid_amount"]
[1759237992124,20.8,207.02,206.97,21.7624261]
[1759237992423,29.32,207.05,206.97,21.7624261]
[1759237992629,34.14976158,207.05,206.97,21.7624261]
[1759237993225,5.52950857,207.07,206.97,21.7624261]
[1759237994014,0.7,207.06,206.97,21.7624261]
[1759237994929,34.4,207.08,206.97,16.930808]
[1759237994930,0.7,207.04,206.97,16.930808]
[1759237995724,34.4,207.08,206.97,16.930808]
[1759237995725,5.53046314,207.02,206.97,50.600808]
[1759237995929,0.7,207.02,206.97,51.260808]
[1759237996224,5.53047958,207.02,206.97,51.260808]
[1759237996430,4.83020326,207.04,206.97,56.0924261]
[1759237997128,5.52975823,207.05,206.97,56.0924261]
[1759237997309,4.82998732,207.04,206.97,56.0924261]
[1759237997729,4.82998732,207.04,206.97,53.46721211]
[1759237997928,4.82998732,207.04,206.97,56.0924261]
[1759237998425,4.82998732,207.04,206.97,115.4924261]
[1759237998623,4.8302216,207.03,206.97,115.4924261]
[1759237998829,5.52049011,207.02,206.97,109.980808]
[1759237999020,5.52049011,207.02,206.97,110.690808]
[1759237999226,5.52049011,207.02,206.97,115.5224261]
[1759237999406,4.83049011,207.02,206.97,115.5224261]
[1759237999905,4.83049011,207.02,206.97,110.690808]
[1759238000118,5.52049011,207.02,206.97,110.690808]
[1759238000533,5.52049011,207.02,206.97,115.5224261]
[1759238000732,0.69,207.02,206.97,115.5224261]
[1759238000902,0.69,207.04,206.97,112.89721211]
[1759238001108,0.69,207.06,206.97,115.5224261]
[1759238001717,0.69,207.04,206.97,115.5224261]
[1759238002218,4.82977764,207.05,206.97,115.5224261]
[1759238002731,4.82930349,207.07,206.97,115.5224261]
[1759238003029,5.51961599,207.06,206.97,115.5224261]
[1759238003412,0.69,207.03,206.97,115.5224261]
[1759238003625,0.69,207.01,206.97,75.620808]
[1759238003824,0.69,207.01,206.97,109.960808]
[1759238004127,5.52080017,207.01,206.97,109.960808]
[1759238004823,0.69,207.01,206.97,109.960808]
[1759238005519,5.52020776,207.04,206.97,115.5024261]
[1759238005721,4.83024425,207.03,206.97,115.5024261]
[1759238005923,5.52024425,207.03,206.97,115.5024261]
[1759238006434,4.83073571,207.01,206.97,110.670808]
[1759238006633,0.69,207.03,206.97,110.670808]
[1759238006831,0.69,207.03,206.97,115.5024261]
[1759238007340,0.69,207.03,206.97,56.1024261]
[1759238007516,5.52041824,207.03,206.97,56.1024261]
[1759238007714,4.83048374,207.02,206.97,56.1024261]
[1759238008019,5.52069519,207.01,206.97,50.560808]
[1759238008424,0.69,207.01,206.97,56.1024261]
[1759238008633,0.69,207.01,206.97,50.560808]
[1759238009034,5.52093234,207.0,206.97,16.220808]
[1759238009230,0.89,206.98,206.97,13.59559401]
[1759238009435,0.89,206.98,206.89,14.3748694]
[1759238009436,5.72138467,206.98,206.92,2.62521399]
[1759238009636,0.69,206.97,206.93,47.91559401]
[1759238009814,0.69,206.96,206.93,47.91559401]
[1759238010019,0.69,206.95,206.93,47.91559401]
[1759238010234,0.69,206.94,206.93,47.91559401]
[1759238010822,5.52231854,206.94,206.93,47.91559401]
[1759238011020,0.69,206.94,206.93,47.91559401]
[1759238011740,0.69,206.94,206.92,47.91559401]
[1759238012144,4.8320991,206.95,206.92,47.91559401]
[1759238012347,0.69,206.96,206.92,47.91559401]
[1759238012516,5.03159872,206.98,206.93,2.62521399]
[1759238012717,0.2,206.98,206.95,16.220808]
[1759238012923,0.2,206.98,206.97,16.220808]
[1759238014737,0.2,206.98,206.97,21.7624261]
[1759238020024,0.2,206.98,206.97,21.0524261]
[1759238020226,0.2,206.98,206.97,20.10237568]
[1759238020449,0.2,206.98,206.97,20.81237568]
[1759238022850,0.87,206.98,206.97,13.59559401]
[1759238023053,0.87,206.98,206.97,47.87559401]
[1759238023782,5.70138467,206.98,206.97,47.87559401]
[1759238025146,5.70138467,206.98,206.97,13.59559401]
[1759238027951,5.70138467,206.98,206.96,34.26]
[1759238027952,5.70138467,206.98,206.95,34.26]
[1759238028146,5.03138467,206.98,206.96,13.59559401]
[1759238028439,5.5016181,206.97,206.92,13.59559401]
[1759238028751,0.2,206.98,206.93,35.93516357]
[1759238028950,0.2,206.98,206.97,15.27075758]
[1759238029129,0.2,206.98,206.97,49.73075758]
[1759238029470,0.2,206.98,206.97,50.39075758]
[1759238029773,0.2,206.98,206.97,13.59559401]
[1759238029774,0.87,206.98,206.97,13.59559401]
[1759238029946,0.87,206.98,206.97,48.07559401]
[1759238030635,0.2,206.98,206.97,49.75075758]
[1759238032141,0.87,206.98,206.97,48.07559401]
[1759238032445,4.11747368,206.98,206.97,48.05559401]
[1759238033866,3.44747368,206.98,206.97,48.05559401]
[1759238034370,8.27885835,206.98,206.97,48.05559401]
[1759238035069,3.44747368,206.98,206.97,15.27075758]
[1759238035370,0.2,206.98,206.97,48.03559401]
[1759238035662,8.94949758,206.98,206.97,48.03559401]
[1759238036043,0.2,206.98,206.97,49.71075758]
[1759238036769,0.2,206.98,206.97,55.20237568]
[1759238040150,0.2,206.98,206.97,48.03559401]
[1759238040772,0.87,206.98,206.97,48.03559401]
[1759238041073,8.94971607,206.98,206.92,13.59559401]
[1759238041244,4.83185156,206.96,206.93,34.46]
[1759238041444,0.67,206.95,206.93,34.46]
[1759238041870,5.03157718,206.98,206.93,34.46]
[1759238042074,3.91792189,206.97,206.93,34.46]
[1759238042269,3.91792189,206.96,206.93,34.46]
[1759238042575,0.67,206.96,206.93,34.46]
[1759238042756,3.91792189,206.96,206.93,34.46]
[1759238042959,3.24792189,206.97,206.93,34.46]
[1759238043152,3.91792189,206.97,206.93,34.46]
[1759238043364,3.24792189,206.97,206.95,13.59559401]
[1759238043665,8.27897803,206.98,206.95,48.03559401]
[1759238043840,5.0313941,206.98,206.95,13.59559401]
[1759238044040,3.91746876,206.97,206.95,13.59559401]
[1759238044646,0.67,206.97,206.95,13.59559401]
[1759238045042,4.83169698,206.97,206.95,13.59559401]
[1759238045351,5.50169698,206.97,206.95,13.59559401]
[1759238045777,8.74916574,206.97,206.95,13.59559401]
[1759238046078,5.50169698,206.97,206.95,13.59559401]
[1759238046290,0.2,206.98,206.95,13.59559401]
[1759238046559,3.44746876,206.98,206.97,13.59559401]
[1759238046960,3.44746876,206.98,206.97,15.93075758]
[1759238046961,0.2,206.98,206.97,15.93075758]
[1759238047555,0.2,206.98,206.97,15.27075758]
[1759238048078,0.2,206.98,206.97,15.93075758]
[1759238048277,5.03138467,206.98,206.94,13.59559401]
[1759238048447,3.24741546,206.97,206.94,13.59559401]
[1759238048646,0.2,206.98,206.94,48.67559401]
[1759238048846,0.2,206.98,206.95,0.66]
[1759238048847,5.03147873,206.98,206.95,0.66]
[1759238049046,5.03147873,206.98,206.97,13.59559401]
[1759238049361,8.94878708,206.98,206.94,13.59559401]
[1759238049556,3.91730835,206.97,206.94,13.59559401]
[1759238049952,0.67,206.96,206.94,13.59559401]
[1759238051086,5.50195615,206.96,206.94,13.59559401]
[1759238051286,5.50195615,206.96,206.92,13.59559401]
[1759238051287,0.67,206.95,206.92,13.59559401]
[1759238051492,8.0792645,206.96,206.94,13.59559401]
[1759238051678,8.7492645,206.96,206.94,13.59559401]
[1759238052561,5.51208504,206.95,206.94,13.59559401]
[1759238052763,4.83208504,206.95,206.94,13.59559401]
[1759238055687,17.59229765,206.95,206.91,13.59559401]
[1759238055865,3.92730835,206.94,206.91,13.59559401]
[1759238056060,3.24730835,206.93,206.88,13.59559401]
[1759238056368,0.68,206.93,206.88,14.30559401]
[1759238056679,0.68,206.93,206.9,13.59559401]
[1759238056873,3.24730835,206.94,206.9,13.59559401]
[1759238057266,3.93730835,206.94,206.9,13.59559401]
[1759238058100,4.83255207,206.93,206.9,13.59559401]
[1759238058597,4.83255207,206.93,206.9,0.68]
[1759238058767,8.07962144,206.95,206.91,0.68]
[1759238058968,4.83231309,206.95,206.88,15.27075758]
[1759238059188,8.07962144,206.95,206.89,0.68]
[1759238059396,3.24730835,206.96,206.94,1.67516357]
[1759238059607,5.03139772,206.98,206.95,48.11559401]
[1759238061166,0.2,206.98,206.97,13.59559401]
[1759238061797,0.2,206.98,206.97,14.27559401]
[1759238062462,0.2,206.98,206.97,20.78237568]
[1759238064186,0.2,206.98,206.97,15.95075758]
[1759238064784,0.2,206.98,206.97,14.27559401]
[1759238065377,0.2,206.98,206.97,34.52]
[1759238065569,0.2,206.98,206.97,34.5]
[1759238066867,5.72138467,206.98,206.92,59.4]
[1759238067181,3.93369042,206.97,206.93,48.09559401]
[1759238067381,0.69,206.96,206.93,48.09559401]
[1759238067990,3.24369042,206.97,206.93,48.09559401]
[1759238068171,3.93369042,206.97,206.93,48.09559401]
[1759238068596,0.2,206.98,206.96,1.67601523]
[1759238068773,0.2,206.98,206.95,13.59559401]
[1759238068774,0.69,206.97,206.95,13.59559401]
[1759238069102,3.93369042,206.97,206.96,13.59559401]
[1759238070099,3.24369042,206.97,206.96,13.59559401]
[1759238071097,8.07530852,206.97,206.94,13.59559401]
[1759238071597,3.24369042,206.96,206.94,13.59559401]
[1759238071791,1.67601523,206.95,206.94,13.59559401]
[1759238072100,2.36601523,206.95,206.91,48.09559401]
[1759238072301,2.36601523,206.94,206.91,48.09559401]
[1759238072910,2.36601523,206.93,206.89,34.5]
[1759238073078,1.67601523,206.9,206.85,0.68]
[1759238073284,1.67601523,206.9,206.86,13.59559401]
[1759238073285,2.36601523,206.9,206.86,13.59559401]
[1759238074009,4.05461303,207.02,206.94,13.59559401]
[1759238074181,2.36601523,207.01,206.96,13.59559401]
[1759238074379,0.69,207.01,206.96,13.59559401]
[1759238074579,2.36601523,207.01,206.96,13.59559401]
[1759238075293,4.83067795,207.02,206.97,0.68]
[1759238075503,20.8,207.03,206.97,14.27559401]
[1759238075686,25.63023603,207.03,206.97,14.27559401]
[1759238076603,25.63023603,207.03,206.97,13.59559401]
[1759238076811,25.63023603,207.03,206.97,14.27559401]
[1759238077203,25.63023603,207.03,206.97,19.10721211]
[1759238077384,20.8,207.03,206.97,19.10721211]
[1759238077910,4.82994045,207.05,206.97,19.10721211]
[1759238078907,26.31953617,207.06,206.97,19.10721211]
[1759238079105,26.31953617,207.06,206.97,53.92721211]
[1759238079609,0.69,207.04,206.97,53.90721211]
[1759238080192,0.69,207.04,206.97,56.5241971]
[1759238082410,5.51949112,207.07,206.97,56.5241971]
[1759238082614,4.82949112,207.07,206.97,21.7241971]
[1759238082914,5.51952557,207.06,206.97,56.5041971]
[1759238083410,4.82976947,207.05,206.97,56.5041971]
[1759238083612,0.69,207.03,206.97,56.5041971]
[1759238083913,0.69,207.03,206.97,56.5341971]
[1759238084810,0.69,207.03,206.97,115.9341971]
[1759238085513,0.89,206.98,206.97,13.59559401]
[1759238085698,0.89,206.98,206.94,2.61698499]
[1759238085898,0.2,206.98,206.96,2.61698499]
[1759238086416,0.89,206.98,206.97,13.59559401]
[1759238086714,0.89,206.98,206.97,2.61698499]
[1759238086888,0.2,206.98,206.97,2.61698499]
[1759238087290,0.89,206.98,206.96,16.212579]
[1759238087916,0.69,206.97,206.96,13.59559401]
[1759238089402,5.5216181,206.97,206.96,13.59559401]
[1759238090020,0.2,206.98,206.96,16.922579]
[1759238090205,0.2,206.98,206.97,51.032579]
[1759238091307,0.2,206.98,206.97,21.0441971]
[1759238091509,0.2,206.98,206.97,55.9241971]
[1759238091708,0.2,206.98,206.97,56.6341971]
[1759238096613,0.2,206.98,206.97,115.2841971]
[1759238097906,0.89,206.98,206.97,13.59559401]
[1759238098109,0.2,206.98,206.97,21.0441971]
[1759238098324,0.2,206.98,206.97,55.9041971]
[1759238099617,0.2,206.98,206.97,53.28721211]
[1759238099814,0.2,206.98,206.97,55.9041971]
[1759238100740,0.2,207.17,207.01,34.39559401]
[1759238100912,0.69,207.1,207.08,16.212579]
[1759238101108,0.69,207.1,207.08,51.212579]
[1759238102313,0.69,207.13,207.08,56.04163057]
[1759238103518,0.89,207.17,207.08,56.75163057]
[1759238103946,0.69,207.16,207.08,56.75163057]
[1759238104321,0.69,207.16,207.08,68.8242595]
[1759238104550,0.2,207.17,207.11,37.012579]
[1759238104751,0.2,207.17,207.11,71.992579]
[1759238104920,0.89,207.15,207.11,37.012579]
[1759238105119,0.89,207.15,207.11,71.992579]
[1759238106235,0.89,207.15,207.11,76.82093108]
[1759238106741,0.2,207.15,207.11,76.82093108]
[1759238106945,0.2,207.15,207.11,77.53093108]
[1759238107122,0.2,207.15,207.11,41.84093108]
[1759238107318,0.2,207.15,207.11,39.22394609]
[1759238107522,0.79,207.12,207.11,51.152579]
[1759238108827,0.79,207.12,207.11,55.98093108]
[1759238109029,0.79,207.12,207.11,51.152579]
[1759238109243,0.79,207.12,207.11,16.212579]
[1759238109448,0.79,207.12,207.11,13.59559401]
[1759238109741,0.79,207.12,207.11,48.51559401]
[1759238109947,0.79,207.12,207.11,13.59559401]
[1759238110117,0.79,207.12,207.11,48.51559401]
[1759238110837,0.79,207.12,207.11,51.132579]
[1759238111851,0.79,207.12,207.11,16.212579]
[1759238112148,0.79,207.12,207.11,51.132579]
[1759238112955,0.79,207.12,207.11,48.51559401]
[1759238113949,0.79,207.12,207.11,13.59559401]
[1759238114136,0.79,207.12,207.11,48.49559401]
[1759238115552,0.79,207.12,207.11,48.43559401]
[1759238115553,5.61811896,207.12,207.11,48.43559401]
[1759238116262,0.79,207.12,207.11,48.43559401]
[1759238116459,0.79,207.12,207.11,13.59559401]
[1759238116657,0.79,207.12,207.11,48.43559401]
[1759238116859,0.79,207.12,207.11,13.59559401]
[1759238117063,0.79,207.12,207.11,48.43559401]
[1759238117260,0.79,207.12,207.11,13.59559401]
[1759238117568,5.61811896,207.12,207.07,2.61698499]
[1759238117731,5.61811896,207.12,207.03,2.61698499]
[1759238117732,2.61698499,207.09,207.03,2.61698499]
[1759238117932,2.61698499,207.09,207.04,48.45559401]
[1759238118166,0.71,207.08,207.04,48.45559401]
[1759238118344,2.61698499,207.09,207.04,48.45559401]
[1759238118345,0.71,207.07,207.04,48.45559401]
[1759238118548,0.71,207.06,207.04,48.45559401]
[1759238118749,4.82944523,207.07,207.04,48.45559401]
[1759238119058,0.71,207.05,207.04,13.59559401]
[1759238119358,0.71,207.05,207.04,48.43559401]
[1759238119558,0.71,207.05,207.04,13.59559401]
[1759238119734,0.71,207.05,207.04,48.43559401]
[1759238119934,4.82927747,207.08,207.04,13.59559401]
[1759238120260,0.71,207.1,207.06,2.61698499]
[1759238120561,0.1,207.12,207.1,13.59559401]
[1759238120750,0.1,207.12,207.11,51.052579]
[1759238122356,0.1,207.12,207.1,4.82854933]
[1759238122357,0.81,207.12,207.05,0.7]
[1759238122566,5.63811896,207.12,207.08,13.59559401]
[1759238122746,0.71,207.11,207.08,13.59559401]
[1759238123241,0.71,207.1,207.08,13.59559401]
[1759238124562,4.92814023,207.12,207.1,13.59559401]
[1759238124756,5.63814023,207.12,207.1,20.15651552]
[1759238124955,0.81,207.12,207.1,20.15651552]
[1759238127351,0.81,207.12,207.1,13.59559401]
[1759238127658,0.81,207.12,207.1,20.15651552]
[1759238128873,5.63811958,207.12,207.1,20.15651552]
[1759238129047,5.63811958,207.12,207.1,13.59559401]
[1759238129359,0.71,207.11,207.1,13.59559401]
[1759238130059,4.92811958,207.12,207.1,13.59559401]
[1759238130236,5.63811958,207.12,207.1,13.59559401]
[1759238130436,0.81,207.12,207.1,48.39559401]
[1759238130640,0.81,207.12,207.1,13.59559401]
[1759238130858,0.81,207.12,207.1,48.37559401]
[1759238132166,5.63824318,207.12,207.1,48.37559401]
[1759238134237,5.63824318,207.12,207.1,13.59559401]
[1759238134238,0.71,207.11,207.1,13.59559401]
[1759238134656,0.71,207.11,207.09,41.30092151]
[1759238134657,0.71,207.11,207.09,13.59559401]
[1759238134853,0.71,207.1,207.09,13.59559401]
[1759238135051,0.71,207.1,207.06,6.56092151]
[1759238135256,0.71,207.1,207.07,48.31559401]
[1759238135737,5.53894832,207.09,207.07,48.31559401]
[1759238135940,0.71,207.08,207.05,6.56092151]
[1759238136137,0.71,207.07,207.05,48.31559401]
[1759238136337,4.82894832,207.09,207.05,48.31559401]
[1759238136566,0.71,207.08,207.05,48.31559401]
[1759238136757,0.71,207.08,207.05,54.87651552]
[1759238137057,0.71,207.08,207.05,20.15651552]
[1759238137256,5.53862006,207.1,207.06,6.56092151]
[1759238137653,0.71,207.09,207.06,6.56092151]
[1759238137861,4.82905157,207.08,207.05,54.87651552]
[1759238138060,0.71,207.07,207.05,6.56092151]
[1759238138260,0.71,207.07,207.04,34.7]
[1759238139291,16.9016805,207.08,207.02,13.59559401]
[1759238139292,7.27092151,207.06,207.02,13.59559401]
[1759238139447,6.56092151,207.04,206.99,13.59559401]
[1759238139646,7.27092151,207.03,206.99,13.59559401]
[1759238139864,0.71,207.02,206.99,13.59559401]
[1759238140146,4.8306845,207.01,206.99,13.59559401]
[1759238140368,4.8306845,207.01,206.97,20.15651552]
[1759238140563,4.8306845,207.01,206.99,13.59559401]
[1759238141087,20.8,207.05,207.01,13.59559401]
[1759238141248,7.27092151,207.09,207.03,13.59559401]
[1759238141449,7.27092151,207.09,207.02,41.98092151]
[1759238141450,0.71,207.09,207.05,13.59559401]
[1759238142059,0.71,207.08,207.05,13.59559401]
[1759238142356,21.34138344,207.09,207.05,13.59559401]
[1759238142556,0.67,207.07,207.04,13.59559401]
[1759238143366,0.67,207.07,207.04,18.0361131]
[1759238143577,17.57086435,207.09,207.04,18.0361131]
[1759238143768,0.67,207.08,207.04,18.0361131]
[1759238144075,16.90086435,207.09,207.03,34.74]
[1759238144076,0.67,207.07,207.03,4.44051909]
[1759238144251,0.67,207.07,207.04,13.59559401]
[1759238144451,0.67,207.06,207.04,13.59559401]
[1759238144666,0.67,207.08,207.04,13.59559401]
[1759238145175,4.82928478,207.07,207.04,13.59559401]
[1759238145378,2.34469288,207.06,207.0,1.67469288]
[1759238145677,2.34469288,207.05,206.99,48.29559401]
[1759238145877,0.67,207.05,207.0,1.67469288]
[1759238146067,0.67,207.04,207.0,1.67469288]
[1759238146885,3.23922367,207.08,207.03,13.59559401]
[1759238147076,4.13265899,207.12,207.03,13.59559401]
[1759238147077,17.56926746,207.11,207.07,13.59559401]
[1759238147263,0.67,207.1,207.07,13.59559401]
[1759238147770,0.1,207.12,207.09,13.59559401]
[1759238148078,0.1,207.12,207.11,13.59559401]
[1759238148456,0.1,207.12,207.1,13.59559401]
[1759238148657,0.1,207.12,207.1,14.27559401]
[1759238148862,0.1,207.12,207.11,2.35469288]
[1759238150173,0.1,207.12,207.08,13.59559401]
[1759238150375,0.1,207.12,207.11,1.67469288]
[1759238150583,0.1,207.12,207.11,36.47469288]
[1759238150969,0.1,207.12,207.11,50.07028689]
[1759238151581,0.1,207.12,207.11,15.27028689]
[1759238157754,4.92811896,207.12,207.11,13.59559401]
[1759238157961,8.83734263,207.12,207.11,13.59559401]
[1759238159675,8.83734263,207.12,207.07,13.59559401]
[1759238159877,3.23922367,207.11,207.1,13.59559401]
[1759238160276,3.90922367,207.11,207.09,13.59559401]
[1759238160486,3.23922367,207.11,207.09,13.59559401]
[1759238162292,8.06764186,207.11,207.09,13.59559401]
[1759238162791,8.06764186,207.11,207.1,15.27028689]
[1759238162792,3.23922367,207.11,207.1,15.27028689]
[1759238163086,8.06757575,207.11,207.04,0.68]
[1759238163282,1.67469288,207.07,207.02,13.59559401]
[1759238163486,0.67,207.06,207.01,1.67469288]
[1759238163677,2.34469288,207.06,207.02,13.59559401]
[1759238163874,0.67,207.05,207.01,34.68]
[1759238164262,4.82998454,207.04,207.02,13.59559401]
[1759238165188,0.67,207.03,206.99,13.59559401]
[1759238166079,1.67469288,207.03,206.99,13.59559401]
[1759238166424,6.50537738,207.01,206.97,13.59559401]
[1759238166593,2.34469288,207.0,206.96,34.66]
[1759238166898,0.67,206.99,206.95,13.59559401]
[1759238167105,16.90739576,207.01,206.91,2.35469288]
[1759238167106,1.67469288,206.97,206.91,2.35469288]
[1759238167300,21.47,206.97,206.91,1.67469288]
[1759238167476,21.47,206.97,206.92,13.59559401]
[1759238167477,2.34469288,206.96,206.92,13.59559401]
[1759238167672,0.67,206.95,206.92,13.59559401]
[1759238168294,5.50218612,206.95,206.91,13.59559401]
[1759238168593,5.50218612,206.95,206.91,15.27028689]
[1759238168905,4.83218612,206.95,206.91,15.27028689]
[1759238169094,5.50179085,206.97,206.91,15.95028689]
[1759238169276,4.83159033,206.98,206.94,13.59559401]
[1759238169476,5.50159033,206.98,206.94,13.59559401]
[1759238170171,5.50159033,206.98,206.92,2.35469288]
[1759238171388,5.50159033,206.98,206.92,0.68]
[1759238171582,1.67469288,206.97,206.89,13.59559401]
[1759238171900,22.47469288,206.95,206.89,49.93028689]
[1759238172098,22.47469288,206.95,206.89,48.25559401]
[1759238172099,2.34469288,206.94,206.89,48.25559401]
[1759238172396,0.72,206.93,206.89,13.59559401]
[1759238172784,22.47469288,206.95,206.89,13.59559401]
[1759238172990,2.39469288,206.94,206.89,13.59559401]
[1759238173189,20.8,206.95,206.89,15.98028689]
[1759238173397,4.83231854,206.94,206.89,15.98028689]
[1759238173787,5.55231854,206.94,206.89,15.98028689]
[1759238174105,5.55231854,206.94,206.88,34.86]
[1759238174106,4.83231854,206.94,206.91,13.59559401]
[1759238174403,4.83209483,206.95,206.91,13.59559401]
[1759238174604,26.35186988,206.96,206.91,15.98028689]
[1759238174907,26.35186988,206.96,206.91,2.38469288]
[1759238175711,2.39469288,206.95,206.9,13.59559401]
[1759238175886,0.72,206.94,206.9,48.23559401]
[1759238176388,0.72,206.93,206.89,48.23559401]
[1759238176591,1.67469288,206.93,206.89,13.59559401]
[1759238176904,0.72,206.92,206.88,0.2]
[1759238177199,0.72,206.99,206.92,13.59559401]
[1759238177413,0.72,206.99,206.95,13.59559401]
[1759238177782,7.22607755,206.98,206.88,0.2]
[1759238178121,1.67469288,206.97,206.91,13.59559401]
[1759238178414,0.72,206.96,206.89,48.33559401]
[1759238178596,1.67469288,206.95,206.89,48.33559401]
[1759238178781,1.67469288,206.94,206.89,48.33559401]
[1759238178985,2.39469288,206.94,206.89,48.33559401]
[1759238179187,0.72,206.93,206.89,13.59559401]
[1759238179391,0.72,206.92,206.88,48.53559401]
[1759238179891,2.39469288,206.91,206.88,0.2]
[1759238180109,0.72,206.91,206.88,0.2]
[1759238180414,20.8,206.95,206.89,13.59559401]
[1759238180415,6.50701219,206.94,206.89,13.59559401]
[1759238180584,7.22701219,206.94,206.89,13.59559401]
[1759238180781,6.50701219,206.94,206.89,13.59559401]
[1759238180996,6.50701219,206.94,206.91,13.59559401]
[1759238181398,4.83231931,206.94,206.91,13.59559401]
[1759238181813,25.63210117,206.95,206.91,13.59559401]
[1759238182011,25.63210117,206.95,206.91,14.28559401]
[1759238182508,25.63210117,206.95,206.91,13.59559401]
[1759238182687,26.35210117,206.95,206.89,18.4290617]
[1759238182890,28.02679405,206.95,206.89,18.4290617]
[1759238183920,28.02679405,206.95,206.89,13.59559401]
[1759238184106,0.72,206.94,206.89,13.59559401]
[1759238184314,0.72,206.93,206.89,13.59559401]
[1759238186415,7.22727385,206.93,206.89,13.59559401]
[1759238187212,1.67469288,206.93,206.91,13.59559401]
[1759238187385,4.83255657,206.93,206.89,13.59559401]
[1759238187590,4.83255657,206.93,206.89,14.28559401]
[1759238188625,24.15630435,206.99,206.89,14.28559401]
[1759238188626,12.07318528,207.08,206.92,20.8]
[1759238188795,1.67469288,207.04,206.97,13.59559401]
[1759238188996,1.67469288,207.04,206.99,13.59559401]
[1759238189397,1.67469288,207.04,206.99,14.28559401]
[1759238189801,5.54971923,207.06,207.01,13.59559401]
[1759238190094,3.22096301,207.08,207.03,15.27028689]
[1759238190291,0.1,207.12,207.08,13.59559401]
[1759238190722,0.1,207.12,207.08,14.28559401]
[1759238191012,0.1,207.12,207.08,15.96028689]
[1759238191191,0.1,207.12,207.1,13.59559401]
[1759238191392,4.92816835,207.12,207.1,13.59559401]
[1759238192317,0.1,207.12,207.08,15.96028689]
[1759238193719,0.1,207.12,207.08,15.27028689]
[1759238193930,0.1,207.12,207.1,13.59559401]
[1759238194114,0.1,207.12,207.11,15.27028689]
[1759238194613,0.1,207.12,207.11,15.96028689]
[1759238195417,0.1,207.12,207.11,15.27028689]
[1759238196716,5.64811896,207.12,207.11,13.59559401]
[1759238197024,0.1,207.12,207.11,13.59559401]
[1759238198513,4.92811896,207.12,207.11,13.59559401]
[1759238200411,0.1,207.12,207.11,13.59559401]
[1759238204043,4.92811896,207.12,207.11,13.59559401]
[1759238204218,14.88388337,207.15,207.11,13.59559401]
[1759238204219,0.1,207.19,207.12,13.59559401]
[1759238204421,0.1,207.19,207.18,2.61510938]
[1759238204729,0.1,207.19,207.18,16.21070339]
[1759238204921,0.1,207.19,207.18,13.74559401]
[1759238205125,0.1,207.19,207.18,16.36070339]
[1759238206327,0.1,207.19,207.18,21.18742411]
[1759238209009,0.1,207.19,207.18,56.02742411]
[1759238209414,0.1,207.19,207.18,21.18742411]
[1759238209716,0.1,207.19,207.18,56.00742411]
[1759238210116,0.1,207.19,207.18,76.80742411]
[1759238210627,0.2,207.24,207.19,13.59559401]
[1759238210937,0.2,207.24,207.23,16.21070339]
[1759238211115,0.2,207.24,207.23,51.03070339]
[1759238212136,0.2,207.24,207.23,16.21070339]
[1759238212334,0.2,207.24,207.23,51.03070339]
[1759238212540,0.2,207.24,207.23,56.00625953]
[1759238212721,0.2,207.24,207.23,58.62136891]
[1759238213840,0.2,207.24,207.23,58.47136891]
[1759238214352,0.2,207.24,207.23,55.85625953]
[1759238214542,0.2,207.24,207.23,21.03625953]
[1759238214720,0.2,207.24,207.23,55.81625953]
[1759238216138,0.2,207.24,207.23,21.03625953]
[1759238216344,0.2,207.24,207.23,55.79625953]
[1759238216540,0.2,207.24,207.23,21.03625953]
[1759238216752,0.2,207.24,207.23,55.79625953]
[1759238220548,0.2,207.24,207.23,53.18115015]
[1759238220752,0.2,207.24,207.23,55.79625953]
[1759238220953,0.2,207.24,207.23,55.94625953]
[1759238221129,0.2,207.24,207.23,53.33115015]
[1759238221328,0.2,207.24,207.23,55.79625953]
[1759238223046,0.2,207.24,207.23,55.94625953]
[1759238224056,0.2,207.24,207.23,21.03625953]
[1759238224268,0.2,207.24,207.23,115.11625953]
[1759238226259,0.2,207.24,207.23,117.88136891]
[1759238226754,0.2,207.28,207.27,37.01070339]
[1759238227054,0.2,207.28,207.27,71.65070339]
[1759238227254,0.2,207.28,207.27,76.47532827]